[Event "*** Titled Tuesday 3|2 Blitz"]
[Site "Chess.com"]
[Date "2017.03.07"]
[Round "10"]
[White "Genghis_K"]
[Black "Hikaru"]
[Result "0-1"]
[WhiteElo "2716"]
[BlackElo "2916"]
[TimeControl "180+2"]
[EndTime "15:23:36 PST"]
[Termination "Hikaru won by resignation"]

1. e4 {[%clk 0:03:01.1]} 1... e5 {[%clk 0:03:00]} 2. Nf3 {[%clk 0:03:02.7]} 2...
Nc6 {[%clk 0:03:01.5]} 3. Bb5 {[%clk 0:03:04.1]} 3... Nf6 {[%clk 0:03:02.6]} 4.
O-O {[%clk 0:03:05.7]} 4... Nxe4 {[%clk 0:03:03.5]} 5. Re1 {[%clk 0:03:06.6]}
5... Nd6 {[%clk 0:03:05]} 6. Nxe5 {[%clk 0:03:07.6]} 6... Be7 {[%clk 0:03:06.3]}
7. Bf1 {[%clk 0:03:08.4]} 7... Nf5 {[%clk 0:03:07.4]} 8. Nf3 {[%clk 0:03:09.1]}
8... O-O {[%clk 0:03:08.7]} 9. d4 {[%clk 0:03:09.7]} 9... d5 {[%clk 0:03:10.3]}
10. c3 {[%clk 0:03:11.1]} 10... Bd6 {[%clk 0:03:10.2]} 11. Bd3 {[%clk
0:03:08.7]} 11... Re8 {[%clk 0:03:11.3]} 12. Rxe8+ {[%clk 0:03:08.5]} 12... Qxe8
{[%clk 0:03:12.1]} 13. Nbd2 {[%clk 0:03:10.1]} 13... g6 {[%clk 0:03:11.4]} 14.
Nf1 {[%clk 0:03:11.3]} 14... Ng7 {[%clk 0:03:08.6]} 15. Bg5 {[%clk 0:03:08.4]}
15... Be6 {[%clk 0:02:33.9]} 16. Ne3 {[%clk 0:03:04.9]} 16... Qd7 {[%clk
0:02:34.4]} 17. Qb3 {[%clk 0:02:56.3]} 17... Na5 {[%clk 0:02:31.1]} 18. Qb5
{[%clk 0:02:43.4]} 18... Qxb5 {[%clk 0:02:29.7]} 19. Bxb5 {[%clk 0:02:44.9]}
19... c6 {[%clk 0:02:29.2]} 20. Bd3 {[%clk 0:02:46.1]} 20... Ne8 {[%clk
0:02:21.3]} 21. Rd1 {[%clk 0:02:35.3]} 21... f6 {[%clk 0:02:22]} 22. Bh4 {[%clk
0:02:35.7]} 22... b5 {[%clk 0:02:17.8]} 23. Re1 {[%clk 0:02:28.3]} 23... Kf7
{[%clk 0:02:18.2]} 24. Bg3 {[%clk 0:02:21.5]} 24... Nc4 {[%clk 0:02:15.1]} 25.
b3 {[%clk 0:02:17.7]} 25... Nxe3 {[%clk 0:02:15.3]} 26. Rxe3 {[%clk 0:02:18.7]}
26... Bxg3 {[%clk 0:02:12.5]} 27. hxg3 {[%clk 0:02:19.8]} 27... a5 {[%clk
0:02:14.4]} 28. Re1 {[%clk 0:02:06]} 28... Nd6 {[%clk 0:02:13.6]} 29. Nd2 {[%clk
0:02:06.7]} 29... Bf5 {[%clk 0:01:58.1]} 30. Bxf5 {[%clk 0:01:40.7]} 30... Nxf5
{[%clk 0:02:00]} 31. Nf3 {[%clk 0:01:41.7]} 31... Nd6 {[%clk 0:01:59]} 32. Nd2
{[%clk 0:01:42.3]} 32... b4 {[%clk 0:01:55.2]} 33. c4 {[%clk 0:01:13.4]} 33...
dxc4 {[%clk 0:01:55]} 34. Nxc4 {[%clk 0:01:11.3]} 34... Nxc4 {[%clk 0:01:56.1]}
35. bxc4 {[%clk 0:01:13.2]} 35... Re8 {[%clk 0:01:56.2]} 36. Kf1 {[%clk
0:01:11]} 36... Rd8 {[%clk 0:01:49.6]} 37. Rd1 {[%clk 0:01:07.2]} 37... Re8
{[%clk 0:01:44.8]} 38. Re1 {[%clk 0:01:02]} 38... c5 {[%clk 0:01:35.5]} 39. d5
{[%clk 0:00:42.9]} 39... a4 {[%clk 0:01:36.3]} 40. Rc1 {[%clk 0:00:42.9]} 40...
Re4 {[%clk 0:01:35.4]} 41. Rc2 {[%clk 0:00:42.2]} 41... Ke7 {[%clk 0:01:33.3]}
42. f3 {[%clk 0:00:38.4]} 42... Re3 {[%clk 0:01:34.2]} 43. g4 {[%clk 0:00:33.5]}
43... Kd7 {[%clk 0:01:31.8]} 44. Kf2 {[%clk 0:00:34.4]} 44... Rd3 {[%clk
0:01:33]} 45. Ke2 {[%clk 0:00:30.8]} 45... Rd4 {[%clk 0:01:33.9]} 46. Rc1 {[%clk
0:00:29.3]} 46... Kd6 {[%clk 0:01:34.3]} 47. Ke3 {[%clk 0:00:30.5]} 47... Ke5
{[%clk 0:01:35]} 48. g3 {[%clk 0:00:28.6]} 48... g5 {[%clk 0:01:36.4]} 49. Rc2
{[%clk 0:00:24.5]} 49... h6 {[%clk 0:01:37.8]} 50. Rc1 {[%clk 0:00:25.3]} 50...
f5 {[%clk 0:01:37.2]} 51. gxf5 {[%clk 0:00:21.9]} 51... Kxf5 {[%clk 0:01:39.1]}
52. g4+ {[%clk 0:00:21]} 52... Ke5 {[%clk 0:01:40]} 53. Rc2 {[%clk 0:00:22.7]}
53... Rf4 {[%clk 0:01:39.8]} 54. Ke2 {[%clk 0:00:19.5]} 54... Rf8 {[%clk
0:01:20.7]} 55. Ke3 {[%clk 0:00:18.2]} 55... Rb8 {[%clk 0:01:21.7]} 56. Rh2
{[%clk 0:00:19.5]} 56... Rb6 {[%clk 0:01:21.3]} 57. Rd2 {[%clk 0:00:16.1]} 57...
Rf6 {[%clk 0:01:14.9]} 58. Rc2 {[%clk 0:00:15.9]} 58... Rf4 {[%clk 0:01:16]} 59.
Ke2 {[%clk 0:00:10.4]} 59... Rd4 {[%clk 0:01:13.1]} 60. Ke3 {[%clk 0:00:07.8]}
60... Kd6 {[%clk 0:01:14.4]} 61. Rh2 {[%clk 0:00:08.5]} 61... Rxc4 {[%clk
0:01:15.1]} 62. Rxh6+ {[%clk 0:00:09.5]} 62... Kxd5 {[%clk 0:01:16.8]} 63. Rg6
{[%clk 0:00:11.4]} 63... Rc3+ {[%clk 0:01:18.2]} 64. Ke2 {[%clk 0:00:12.9]}
64... Ra3 {[%clk 0:01:17.3]} 65. Rxg5+ {[%clk 0:00:13.9]} 65... Kd4 {[%clk
0:01:18.9]} 66. Rg8 {[%clk 0:00:13.4]} 66... Rxa2+ {[%clk 0:01:20.8]} 67. Kd1
{[%clk 0:00:14.3]} 67... b3 {[%clk 0:01:21.8]} 68. g5 {[%clk 0:00:15.3]} 68...
Rg2 {[%clk 0:01:22.1]} 69. g6 {[%clk 0:00:15]} 69... b2 {[%clk 0:01:22.1]} 70.
Rb8 {[%clk 0:00:16]} 70... Kc3 {[%clk 0:01:23.4]} 0-1

[Event "*** Titled Tuesday 3|2 Blitz"]
[Site "Chess.com"]
[Date "2017.03.07"]
[Round "10"]
[White "VMikhalevski"]
[Black "igorkovalenko"]
[Result "0-1"]
[WhiteElo "2543"]
[BlackElo "2690"]
[TimeControl "180+2"]
[EndTime "15:23:37 PST"]
[Termination "igorkovalenko won on time"]

1. d4 {[%clk 0:03:02]} 1... Nf6 {[%clk 0:03:00.3]} 2. c4 {[%clk 0:03:02.3]} 2...
e6 {[%clk 0:03:01.6]} 3. Nf3 {[%clk 0:03:02.8]} 3... b6 {[%clk 0:03:02.5]} 4. g3
{[%clk 0:03:02.9]} 4... Ba6 {[%clk 0:03:02.4]} 5. Qa4 {[%clk 0:03:02.4]} 5...
Be7 {[%clk 0:03:03.1]} 6. Bg2 {[%clk 0:03:02.5]} 6... O-O {[%clk 0:03:04.7]} 7.
O-O {[%clk 0:03:01.7]} 7... c6 {[%clk 0:03:06.3]} 8. Nbd2 {[%clk 0:02:44.9]}
8... d5 {[%clk 0:03:05.6]} 9. Ne5 {[%clk 0:02:45.5]} 9... b5 {[%clk 0:03:05]}
10. cxb5 {[%clk 0:02:43.6]} 10... Bxb5 {[%clk 0:03:06.3]} 11. Qd1 {[%clk
0:02:44]} 11... Nbd7 {[%clk 0:03:07.3]} 12. Ndf3 {[%clk 0:02:41.7]} 12... Rc8
{[%clk 0:03:05.9]} 13. b3 {[%clk 0:02:40.5]} 13... c5 {[%clk 0:03:02.2]} 14. Bb2
{[%clk 0:02:41.1]} 14... c4 {[%clk 0:03:01.4]} 15. Nxd7 {[%clk 0:02:38]} 15...
Nxd7 {[%clk 0:03:00.5]} 16. bxc4 {[%clk 0:02:38.4]} 16... Bxc4 {[%clk
0:03:02.4]} 17. Qd2 {[%clk 0:02:30.6]} 17... Qb6 {[%clk 0:03:01.8]} 18. Bc3
{[%clk 0:02:28.6]} 18... Qa6 {[%clk 0:03:03]} 19. Rfe1 {[%clk 0:02:22.4]} 19...
Rc7 {[%clk 0:03:02.6]} 20. e3 {[%clk 0:02:17.8]} 20... Rfc8 {[%clk 0:03:03.3]}
21. Bb4 {[%clk 0:02:15.2]} 21... Bxb4 {[%clk 0:03:03.1]} 22. Qxb4 {[%clk
0:02:16.1]} 22... Rb7 {[%clk 0:03:04.4]} 23. Qd2 {[%clk 0:02:02.7]} 23... h6
{[%clk 0:03:03.8]} 24. Rec1 {[%clk 0:02:00.5]} 24... Rcb8 {[%clk 0:03:04.9]} 25.
h3 {[%clk 0:01:50.2]} 25... Qa4 {[%clk 0:03:00.1]} 26. Ne1 {[%clk 0:01:38.2]}
26... Rb2 {[%clk 0:03:00.3]} 27. Qc3 {[%clk 0:01:32.7]} 27... Nf6 {[%clk
0:02:49.1]} 28. Bf3 {[%clk 0:01:04.8]} 28... a5 {[%clk 0:02:48.1]} 29. Bd1
{[%clk 0:01:01.6]} 29... Qb4 {[%clk 0:02:46.9]} 30. a3 {[%clk 0:00:43.3]} 30...
Qxc3 {[%clk 0:02:47.7]} 31. Rxc3 {[%clk 0:00:44]} 31... Ne4 {[%clk 0:02:42.3]}
32. Rc2 {[%clk 0:00:42.9]} 32... Rb1 {[%clk 0:02:43]} 33. Rc1 {[%clk 0:00:41.7]}
33... Rxa1 {[%clk 0:02:42.9]} 34. Rxa1 {[%clk 0:00:41.8]} 34... Rb2 {[%clk
0:02:43.7]} 35. Bc2 {[%clk 0:00:34.8]} 35... Nc3 {[%clk 0:02:40.9]} 36. Kg2
{[%clk 0:00:28.2]} 36... Kf8 {[%clk 0:02:40.1]} 37. g4 {[%clk 0:00:26.6]} 37...
Ke7 {[%clk 0:02:40.7]} 38. h4 {[%clk 0:00:20.7]} 38... f6 {[%clk 0:02:41.4]} 39.
h5 {[%clk 0:00:21]} 39... Kd6 {[%clk 0:02:42]} 40. Bd3 {[%clk 0:00:20.8]} 40...
Ne4 {[%clk 0:02:31.5]} 41. Bc2 {[%clk 0:00:21]} 41... Be2 {[%clk 0:02:27.6]} 42.
f3 {[%clk 0:00:19]} 42... Nd2 {[%clk 0:02:23.6]} 43. Kg3 {[%clk 0:00:15.8]}
43... Bxf3 {[%clk 0:02:15.3]} 44. Nxf3 {[%clk 0:00:12.7]} 44... Nxf3 {[%clk
0:02:16.7]} 45. Kxf3 {[%clk 0:00:13.8]} 45... Rxc2 {[%clk 0:02:17.8]} 46. Rb1
{[%clk 0:00:15.1]} 46... Rc3 {[%clk 0:01:56.6]} 47. a4 {[%clk 0:00:14.2]} 47...
Rc4 {[%clk 0:01:55.1]} 48. Rb6+ {[%clk 0:00:14.7]} 48... Ke7 {[%clk 0:01:54.5]}
49. Rb7+ {[%clk 0:00:11.6]} 49... Kf8 {[%clk 0:01:55.2]} 50. Rb8+ {[%clk
0:00:12.2]} 50... Kf7 {[%clk 0:01:55.6]} 51. Rb7+ {[%clk 0:00:13.3]} 51... Kg8
{[%clk 0:01:57.2]} 52. Rb8+ {[%clk 0:00:14.3]} 52... Kh7 {[%clk 0:01:58.8]} 53.
Re8 {[%clk 0:00:13.8]} 53... Rxa4 {[%clk 0:01:46]} 54. Rxe6 {[%clk 0:00:14.5]}
54... Rb4 {[%clk 0:01:43.6]} 55. Ra6 {[%clk 0:00:14]} 55... Rb5 {[%clk
0:01:44.5]} 56. Ra8 {[%clk 0:00:12.5]} 56... g5 {[%clk 0:01:42.3]} 57. Ra7+
{[%clk 0:00:10.1]} 57... Kg8 {[%clk 0:01:43.5]} 58. Ra6 {[%clk 0:00:08.5]} 58...
Kf7 {[%clk 0:01:44.2]} 59. Ra7+ {[%clk 0:00:09.7]} 59... Ke6 {[%clk 0:01:45.5]}
60. Ra6+ {[%clk 0:00:10.7]} 60... Ke7 {[%clk 0:01:46.8]} 61. Kf2 {[%clk
0:00:06.8]} 61... Rb2+ {[%clk 0:01:44.4]} 62. Kf3 {[%clk 0:00:07.5]} 62... Ra2
{[%clk 0:01:46]} 63. Ra7+ {[%clk 0:00:08.7]} 63... Ke8 {[%clk 0:01:44.3]} 64.
Rb7 {[%clk 0:00:06.3]} 64... Ra1 {[%clk 0:01:45]} 65. Rb5 {[%clk 0:00:06.7]}
65... a4 {[%clk 0:01:45.4]} 66. Rxd5 {[%clk 0:00:07.6]} 66... a3 {[%clk
0:01:47]} 67. Ra5 {[%clk 0:00:07.1]} 67... a2 {[%clk 0:01:48.2]} 68. Kg2 {[%clk
0:00:04.8]} 68... Kd7 {[%clk 0:01:49.6]} 69. Ra6 {[%clk 0:00:03.2]} 69... Kc7
{[%clk 0:01:50.8]} 70. Kh2 {[%clk 0:00:03.2]} 70... Kb7 {[%clk 0:01:52.3]} 71.
Ra3 {[%clk 0:00:03.6]} 71... Kb6 {[%clk 0:01:53.6]} 72. e4 {[%clk 0:00:04.1]}
72... Kb5 {[%clk 0:01:53.5]} 0-1

[Event "*** Titled Tuesday 3|2 Blitz"]
[Site "Chess.com"]
[Date "2017.03.07"]
[Round "10"]
[White "VeraNebolsina"]
[Black "Robin-Side"]
[Result "1/2-1/2"]
[WhiteElo "1926"]
[BlackElo "2418"]
[TimeControl "180+2"]
[EndTime "15:24:09 PST"]
[Termination "Game drawn - insufficient material"]

1. e4 {[%clk 0:03:02]} 1... g6 {[%clk 0:03:02]} 2. d4 {[%clk 0:03:01.9]} 2...
Bg7 {[%clk 0:03:03.9]} 3. c3 {[%clk 0:02:59.9]} 3... e6 {[%clk 0:03:04.4]} 4.
Bd3 {[%clk 0:02:57.6]} 4... Ne7 {[%clk 0:03:05.9]} 5. f4 {[%clk 0:02:58]} 5...
d5 {[%clk 0:03:06.5]} 6. e5 {[%clk 0:02:57.2]} 6... c5 {[%clk 0:03:02.9]} 7. Nf3
{[%clk 0:02:57.3]} 7... cxd4 {[%clk 0:03:00.7]} 8. Nxd4 {[%clk 0:02:57.1]} 8...
Nbc6 {[%clk 0:03:00.7]} 9. Be3 {[%clk 0:02:48]} 9... Nxd4 {[%clk 0:01:11.6]} 10.
Bxd4 {[%clk 0:02:47.7]} 10... Nc6 {[%clk 0:01:12.6]} 11. Bc2 {[%clk 0:02:45]}
11... O-O {[%clk 0:01:05.8]} 12. O-O {[%clk 0:02:28.7]} 12... Nxd4 {[%clk
0:01:06.7]} 13. Qxd4 {[%clk 0:02:23.3]} 13... f6 {[%clk 0:01:07.4]} 14. Nd2
{[%clk 0:02:19.5]} 14... Bd7 {[%clk 0:00:59]} 15. Rae1 {[%clk 0:02:16.3]} 15...
fxe5 {[%clk 0:00:59.3]} 16. fxe5 {[%clk 0:02:15.8]} 16... Rxf1+ {[%clk
0:01:00.6]} 17. Rxf1 {[%clk 0:02:16.7]} 17... Bb5 {[%clk 0:00:52.7]} 18. Rf2
{[%clk 0:02:11]} 18... Qc7 {[%clk 0:00:52.1]} 19. Nf3 {[%clk 0:02:09.9]} 19...
Rf8 {[%clk 0:00:52.4]} 20. Qg4 {[%clk 0:02:06.9]} 20... Bd7 {[%clk 0:00:43.4]}
21. Qd4 {[%clk 0:01:57.1]} 21... a6 {[%clk 0:00:43.8]} 22. h4 {[%clk 0:01:56.8]}
22... Be8 {[%clk 0:00:30.1]} 23. Qg4 {[%clk 0:01:52.9]} 23... Qf7 {[%clk
0:00:26.1]} 24. Qg3 {[%clk 0:01:30.9]} 24... Qf4 {[%clk 0:00:25.5]} 25. Qxf4
{[%clk 0:00:56.6]} 25... Rxf4 {[%clk 0:00:27.4]} 26. g3 {[%clk 0:00:55.3]} 26...
Rf8 {[%clk 0:00:25.4]} 27. Bb3 {[%clk 0:00:51.1]} 27... Bc6 {[%clk 0:00:20.8]}
28. Bc2 {[%clk 0:00:46.2]} 28... Bb5 {[%clk 0:00:12]} 29. Kg2 {[%clk 0:00:42.9]}
29... Bc6 {[%clk 0:00:12.6]} 30. g4 {[%clk 0:00:39.5]} 30... Rf7 {[%clk
0:00:09.7]} 31. Kg3 {[%clk 0:00:40.1]} 31... Bf8 {[%clk 0:00:09.4]} 32. Ng5
{[%clk 0:00:38.5]} 32... Rxf2 {[%clk 0:00:10.3]} 33. Kxf2 {[%clk 0:00:39.4]}
33... Bd7 {[%clk 0:00:11.6]} 34. Ke3 {[%clk 0:00:38.8]} 34... Be7 {[%clk
0:00:12.9]} 35. Kd4 {[%clk 0:00:38.3]} 35... Kg7 {[%clk 0:00:11.9]} 36. Nf3
{[%clk 0:00:38.5]} 36... h6 {[%clk 0:00:13]} 37. Bb3 {[%clk 0:00:29.1]} 37...
Kf7 {[%clk 0:00:14]} 38. c4 {[%clk 0:00:27.2]} 38... dxc4 {[%clk 0:00:12]} 39.
Bxc4 {[%clk 0:00:28.2]} 39... Bc6 {[%clk 0:00:10.3]} 40. Be2 {[%clk 0:00:29.2]}
40... Bxf3 {[%clk 0:00:05.6]} 41. Bxf3 {[%clk 0:00:29.9]} 41... Bxh4 {[%clk
0:00:07.1]} 42. Bxb7 {[%clk 0:00:30.3]} 42... Bf2+ {[%clk 0:00:08.1]} 43. Kc4
{[%clk 0:00:28]} 43... a5 {[%clk 0:00:09.5]} 44. Kb5 {[%clk 0:00:28.2]} 44...
Be1 {[%clk 0:00:10.7]} 45. a3 {[%clk 0:00:27.2]} 45... h5 {[%clk 0:00:11.1]} 46.
gxh5 {[%clk 0:00:26.5]} 46... gxh5 {[%clk 0:00:13]} 47. b4 {[%clk 0:00:27.2]}
47... axb4 {[%clk 0:00:14.9]} 48. axb4 {[%clk 0:00:28.5]} 48... Bc3 {[%clk
0:00:16]} 49. Bg2 {[%clk 0:00:24.3]} 49... Bxe5 {[%clk 0:00:17]} 50. Kc6 {[%clk
0:00:25]} 50... Kf6 {[%clk 0:00:17.5]} 51. b5 {[%clk 0:00:25.9]} 51... Kg5
{[%clk 0:00:17.5]} 52. Kd7 {[%clk 0:00:25.1]} 52... Kf6 {[%clk 0:00:16.3]} 53.
b6 {[%clk 0:00:26]} 53... h4 {[%clk 0:00:17]} 54. b7 {[%clk 0:00:25.3]} 54...
Kg5 {[%clk 0:00:17.1]} 55. Kxe6 {[%clk 0:00:25.5]} 55... Kf4 {[%clk 0:00:17.4]}
56. Bh3 {[%clk 0:00:22]} 56... Bb8 {[%clk 0:00:18.3]} 57. Kd5 {[%clk 0:00:21.3]}
57... Kg3 {[%clk 0:00:20.2]} 58. Bd7 {[%clk 0:00:22.4]} 58... Kf2 {[%clk
0:00:21.1]} 59. Kc6 {[%clk 0:00:23]} 59... Kf3 {[%clk 0:00:22.4]} 60. Bc8 {[%clk
0:00:23.5]} 60... h3 {[%clk 0:00:22.5]} 61. Bxh3 {[%clk 0:00:23.9]} 61... Ke4
{[%clk 0:00:23.5]} 62. Kd7 {[%clk 0:00:24.8]} 62... Kd5 {[%clk 0:00:24.9]} 63.
Kc8 {[%clk 0:00:25.8]} 63... Bh2 {[%clk 0:00:25.8]} 64. b8=Q {[%clk 0:00:26.6]}
64... Bxb8 {[%clk 0:00:19.1]} 65. Kxb8 {[%clk 0:00:27.9]} 1/2-1/2

[Event "*** Titled Tuesday 3|2 Blitz"]
[Site "Chess.com"]
[Date "2017.03.07"]
[Round "10"]
[White "GeorgMeier"]
[Black "GMHess"]
[Result "1-0"]
[WhiteElo "2724"]
[BlackElo "2595"]
[TimeControl "180+2"]
[EndTime "15:24:16 PST"]
[Termination "GeorgMeier won by resignation"]

1. Nf3 {[%clk 0:03:02]} 1... d5 {[%clk 0:03:00.6]} 2. g3 {[%clk 0:03:03.3]} 2...
Nf6 {[%clk 0:03:01]} 3. Bg2 {[%clk 0:03:04.6]} 3... c6 {[%clk 0:03:02.5]} 4. O-O
{[%clk 0:03:06.1]} 4... Bf5 {[%clk 0:03:03]} 5. c4 {[%clk 0:03:06.8]} 5... e6
{[%clk 0:03:01.8]} 6. cxd5 {[%clk 0:03:07.6]} 6... cxd5 {[%clk 0:02:57.9]} 7.
Qb3 {[%clk 0:03:08.4]} 7... Qb6 {[%clk 0:02:50.8]} 8. Qxb6 {[%clk 0:03:09.2]}
8... axb6 {[%clk 0:02:52.7]} 9. Nc3 {[%clk 0:03:10.6]} 9... Nc6 {[%clk
0:02:33.7]} 10. d3 {[%clk 0:03:11.7]} 10... Bc5 {[%clk 0:02:23.1]} 11. Nh4
{[%clk 0:03:11.9]} 11... Bg6 {[%clk 0:02:16.1]} 12. Bd2 {[%clk 0:02:52.2]} 12...
Ke7 {[%clk 0:01:51]} 13. h3 {[%clk 0:02:43.9]} 13... Rhc8 {[%clk 0:01:37.3]} 14.
Rfc1 {[%clk 0:02:44.4]} 14... Ra6 {[%clk 0:01:20.5]} 15. Be1 {[%clk 0:02:25.5]}
15... Rca8 {[%clk 0:01:16.7]} 16. a3 {[%clk 0:02:17.5]} 16... Nd4 {[%clk
0:01:10.7]} 17. Nxg6+ {[%clk 0:01:52]} 17... hxg6 {[%clk 0:01:12.6]} 18. Rab1
{[%clk 0:01:50.4]} 18... Nb3 {[%clk 0:00:35.5]} 19. Rd1 {[%clk 0:01:50.6]} 19...
g5 {[%clk 0:00:23]} 20. e3 {[%clk 0:01:45.7]} 20... Kd7 {[%clk 0:00:17.5]} 21.
d4 {[%clk 0:01:39.2]} 21... Bd6 {[%clk 0:00:18.3]} 22. Bf1 {[%clk 0:01:40.5]}
22... R6a7 {[%clk 0:00:11.1]} 23. g4 {[%clk 0:01:33.7]} 23... Rh8 {[%clk
0:00:10.6]} 24. Nb5 {[%clk 0:01:23.9]} 24... Raa8 {[%clk 0:00:11.6]} 25. Nxd6
{[%clk 0:01:22.5]} 25... Kxd6 {[%clk 0:00:13.5]} 26. Bb4+ {[%clk 0:01:21]} 26...
Kc6 {[%clk 0:00:11.4]} 27. Rd3 {[%clk 0:01:14.1]} 27... Na5 {[%clk 0:00:12.4]}
28. Rc3+ {[%clk 0:01:15]} 28... Kd7 {[%clk 0:00:13.7]} 29. Kg2 {[%clk
0:01:09.1]} 29... Ne4 {[%clk 0:00:12.9]} 30. Rc2 {[%clk 0:01:08]} 30... Nc6
{[%clk 0:00:11]} 31. Be1 {[%clk 0:00:59.9]} 31... Rh6 {[%clk 0:00:11.1]} 32. f3
{[%clk 0:00:59.6]} 32... Nd6 {[%clk 0:00:12.2]} 33. Bg3 {[%clk 0:00:52.6]} 33...
Rah8 {[%clk 0:00:11.2]} 34. Kf2 {[%clk 0:00:54.1]} 34... b5 {[%clk 0:00:09.2]}
35. b3 {[%clk 0:00:52.7]} 35... b4 {[%clk 0:00:09.2]} 36. a4 {[%clk 0:00:53.3]}
36... f5 {[%clk 0:00:08.7]} 37. Rbc1 {[%clk 0:00:51.7]} 37... fxg4 {[%clk
0:00:09.4]} 38. hxg4 {[%clk 0:00:50.6]} 38... Rf8 {[%clk 0:00:09.2]} 39. Kg2
{[%clk 0:00:50.8]} 39... Rhf6 {[%clk 0:00:09.9]} 40. Be2 {[%clk 0:00:52]} 40...
Rc8 {[%clk 0:00:05.9]} 41. Bd3 {[%clk 0:00:38.1]} 41... Rff8 {[%clk 0:00:04.6]}
42. Be1 {[%clk 0:00:32.1]} 42... Nf7 {[%clk 0:00:03.2]} 43. Bb5 {[%clk
0:00:25.9]} 43... Nd6 {[%clk 0:00:04.8]} 44. Bxc6+ {[%clk 0:00:26.6]} 44... Rxc6
{[%clk 0:00:05.3]} 45. Bxb4 {[%clk 0:00:27.1]} 45... Rfc8 {[%clk 0:00:05.3]} 46.
Rxc6 {[%clk 0:00:25]} 46... bxc6 {[%clk 0:00:07.2]} 47. Bc5 {[%clk 0:00:17.3]}
47... Rb8 {[%clk 0:00:07.4]} 48. Rc3 {[%clk 0:00:18.5]} 48... Nf7 {[%clk
0:00:06.6]} 49. a5 {[%clk 0:00:18.3]} 49... Ra8 {[%clk 0:00:07.6]} 50. b4 {[%clk
0:00:19.2]} 50... e5 {[%clk 0:00:07.6]} 51. Rc1 {[%clk 0:00:18.4]} 51... exd4
{[%clk 0:00:06.4]} 52. Bxd4 {[%clk 0:00:20.3]} 52... Rb8 {[%clk 0:00:05.3]} 53.
Bc3 {[%clk 0:00:17.8]} 53... Nd6 {[%clk 0:00:06.1]} 54. Rh1 {[%clk 0:00:16.9]}
54... Nc4 {[%clk 0:00:07.5]} 55. Kf2 {[%clk 0:00:18.3]} 55... c5 {[%clk
0:00:08.9]} 56. bxc5 {[%clk 0:00:18.9]} 56... Rb3 {[%clk 0:00:10.8]} 57. Bd4
{[%clk 0:00:20.2]} 57... Ra3 {[%clk 0:00:11.9]} 58. Rh7 {[%clk 0:00:18.9]} 58...
Ra2+ {[%clk 0:00:12.6]} 59. Kg3 {[%clk 0:00:20.4]} 59... Nd2 {[%clk 0:00:14]}
60. Rxg7+ {[%clk 0:00:21.6]} 60... Kc6 {[%clk 0:00:15.4]} 61. Rxg5 {[%clk
0:00:23.1]} 61... Nf1+ {[%clk 0:00:16.3]} 62. Kf4 {[%clk 0:00:24.3]} 62... Rxa5
{[%clk 0:00:18]} 63. Rg6+ {[%clk 0:00:25.2]} 63... Kb5 {[%clk 0:00:19.5]} 64. c6
{[%clk 0:00:25.6]} 64... Ra8 {[%clk 0:00:20.6]} 65. c7 {[%clk 0:00:26.7]} 65...
Rc8 {[%clk 0:00:21.4]} 66. Rb6+ {[%clk 0:00:26.9]} 66... Ka5 {[%clk 0:00:22.8]}
67. Rb7 {[%clk 0:00:28]} 67... Ka6 {[%clk 0:00:23.9]} 68. Ra7+ {[%clk
0:00:29.3]} 68... Kb5 {[%clk 0:00:25.8]} 69. Be5 {[%clk 0:00:30.6]} 69... Nd2
{[%clk 0:00:25]} 70. Rb7+ {[%clk 0:00:31.9]} 70... Kc6 {[%clk 0:00:26]} 71. Rb8
{[%clk 0:00:33.8]} 71... Kd7 {[%clk 0:00:27.9]} 72. Rxc8 {[%clk 0:00:34.5]}
72... Kxc8 {[%clk 0:00:29.8]} 73. g5 {[%clk 0:00:36.2]} 73... Nc4 {[%clk
0:00:30.3]} 74. g6 {[%clk 0:00:37.6]} 1-0